[Event "55th Biel Festival MTO 2022"]
[Site "Biel"]
[Date "2022.07.19"]
[Round "6.19"]
[White "Panjwani Raja"]
[Black "Tanmay Chopra"]
[Result "1/2-1/2"]
[ECO "E04"]
[WhiteElo "2450"]
[BlackElo "2322"]
[Annotator "TA"]
[PlyCount "55"]
[EventDate "2022.07.13"]
[EventType "swiss"]
[EventCountry "SUI"]
[SourceTitle "playchess.com"]
[Source "ChessBase"]
[SourceQuality "1"]
[TimeControl "40/5400+30:1800+30"]

{[%evp 23,55,33,23,22,22,5,15,11,30,28,32,26,27,34,37,33,43,31,29,0,0,0,0,0,0,-47,-47,-49,-49,-72,-25,-47,-43,-73]} 1. d4 {[%emt 0:00:04]} Nf6 {[%emt 0:00:06]} 2. c4 {[%emt 0:00:10]} e6 {[%emt 0:00:06]} 3. g3 {[%emt 0:00:10]} d5 {[%emt 0:00:32]} 4. Nf3 {[%emt 0:00:10]} dxc4 {[%emt 0:00:34]} 5. Bg2 {[%emt 0:00:07]} c5 {[%emt 0:00:41]} 6. O-O {[%emt 0:00:17]} Nc6 {[%emt 0:00:18]} 7. dxc5 {[%emt 0:00:22]} Qxd1 {[%emt 0:00:09]} 8. Rxd1 {[%emt 0:00:04]} Bxc5 {[%emt 0:00:10]} 9. Nbd2 {[%emt 0:00:08]} c3 {[%emt 0:00:21]} 10. bxc3 {[%emt 0:00:06]} O-O {[%emt 0:00:08]} 11. Nb3 {[%emt 0:00:13]} Be7 {[%emt 0:00:18]} 12. c4 {[%emt 0:08:21]} Bd7 {[%emt 0:00:32]} 13. Bb2 {[%emt 0:02:42] E04: Open Catalan: 5 Nf3.} Rfc8 {[%emt 0:01:36]} 14. Rac1 {[%emt 0:07:58] [#] Strongly threatening Bxf6.} Be8 {[%emt 0:01:28]} 15. Nfd4 {[%emt 0:25:04] The position is equal.} a6 {[%emt 0:32:09]} 16. Nxc6 {[%emt 0:05:58]} Bxc6 {[%emt 0:00:27]} 17. Bxc6 {[%emt 0:00:11] [#]} Rxc6 $146 {[%emt 0:24:00]} ({Predecessor:} 17... bxc6 18. Be5 c5 19. Na5 Ra7 20. Rb1 Nd7 21. Bd6 Kf8 22. f4 Ke8 23. e4 Bd8 {½-½ (71) Stefanova,A (2469)-Koneru,H (2586) Warsaw 2021}) 18. Na5 {[%emt 0:00:27][%csl LRb7,LRc6] Hoping for Bxf6.} Rc7 {[%emt 0:04:26]} 19. Be5 {[%emt 0:02:57]} Rc5 {[%emt 0:00:07][%csl LRa5,LRe5][%cal Bc7c5,Bc5a5,Ba5a2,Ba2e2,Be2c2][%mdl 32]} 20. Bxf6 {[%emt 0:00:20]} gxf6 {[%emt 0:00:03]} 21. Rd7 {[%emt 0:01:42]} Rxa5 {[%emt 0:01:53]} 22. Rxe7 {[%emt 0:00:14]} Rxa2 {[%emt 0:07:31]} 23. Rxb7 {[%emt 0:00:29]} Rxe2 $11 {[%emt 0:07:09] KRR-KRR} 24. Rd1 {[%emt 0:06:09]} (24. c5 $11 Rc8 25. c6) 24... Rc2 {[%emt 0:05:00]} 25. Rdd7 {[%emt 0:00:09]} Rf8 {[%emt 0:02:48]} 26. Rdc7 {[%emt 0:00:27] [#]} Kg7 {[%emt 0:00:19]} ({Better is} 26... h5 $1 $17) 27. Rb6 {[%emt 0:01:38]} Kg6 {[%emt 0:01:55] ...Rd8 is the strong threat.} 28. Rxa6 {[%emt 0:05:05] Weighted Error Value: White=0.11 (very precise) /Black=0.05 (flawless)} 1/2-1/2

[Event "55th Biel Festival MTO 2022"]
[Site "Biel"]
[Date "2022.07.19"]
[Round "6.20"]
[White "Mohammad Nubairshah Shaikh"]
[Black "Aydin Gulenay"]
[Result "1-0"]
[ECO "E68"]
[WhiteElo "2445"]
[BlackElo "2100"]
[Annotator "TA"]
[PlyCount "111"]
[EventDate "2022.07.13"]
[EventType "swiss"]
[EventCountry "SUI"]
[SourceTitle "playchess.com"]
[Source "ChessBase"]
[SourceQuality "1"]
[TimeControl "40/5400+30:1800+30"]

{[%evp 22,111,30,13,21,29,31,28,37,4,33,0,0,-68,-83,-37,-18,-25,312,188,214,220,216,220,222,222,274,281,288,286,291,289,288,288,287,279,337,294,288,269,244,241,355,355,321,315,392,301,402,402,402,298,302,243,29945,29937,29946,5181,29951,29951,12596,6611,6611,5081,29955,29958,29965,29966,29967,29968,29970,29970,29971,29972,29970,29972,29973,29974,29977,29978,29977,29978,29978,29979,29980,29980,29979,29980,29982,29983,29983,29984]} 1. Nf3 {[%emt 0:10:47]} Nf6 {[%emt 0:00:09]} 2. g3 {[%emt 0:00:00]} g6 {[%emt 0:00:00]} 3. b3 {[%emt 0:00:00]} Bg7 {[%emt 0:08:21]} 4. Bb2 {[%emt 0:00:00]} O-O {[%emt 0:00:30]} 5. Bg2 {[%emt 0:00:18]} d6 {[%emt 0:00:30]} 6. d4 {[%emt 0:00:07]} c6 {[%emt 0:02:53]} 7. O-O {[%emt 0:00:10]} Nbd7 {[%emt 0:00:30]} 8. c4 {[%emt 0:02:13]} Re8 {[%emt 0:01:32]} 9. Nc3 {[%emt 0:04:11]} e5 {[%emt 0:01:01]} 10. e4 {[%emt 0:00:03]} exd4 {[%emt 0:01:12]} 11. Nxd4 {[%emt 0:00:03]} Nc5 {[%emt 0:04:19]} 12. Qc2 {[%emt 0:03:36]} h5 {[%emt 0:00:37] E68: King's Indian: Fianchetto: 6...Nbd7 7 0-0 e5 8 e4.} 13. Rad1 {[%emt 0:05:35]} h4 {[%emt 0:03:56]} 14. b4 {[%emt 0:03:15]} (14. gxh4 Nh5 15. Nce2 (15. b4 Ne6 $17) 15... Qxh4 $15) 14... Ncd7 {[%emt 0:14:06] White has an edge.} 15. b5 {[%emt 0:18:37] [#]} (15. gxh4 Nh5 $11) 15... Qc7 $146 {[%emt 0:06:59]} ({Predecessor:} 15... hxg3 16. hxg3 Qc7 17. bxc6 bxc6 18. Nxc6 Bb7 19. Nb5 Qxc6 20. Nxd6 Ne5 21. Bxe5 Rxe5 {½-½ (30) Moujan,P (2253)-Wakeham,M (2237) ICCF email 2020}) 16. bxc6 {[%emt 0:05:00]} bxc6 {[%emt 0:00:20]} 17. Ndb5 {[%emt 0:21:15]} cxb5 $15 {[%emt 0:09:57]} 18. Nxb5 {[%emt 0:00:02]} Qb8 {[%emt 0:15:42] Hoping for ...Bf8.} 19. Nxd6 {[%emt 0:00:25]} Rf8 {[%emt 0:01:49][%mdl 8192] Loses the game.} (19... Re6 $1 $11 {and Black stays safe.}) 20. Nxc8 {[%emt 0:08:57]} (20. gxh4 Nh5 $16) 20... Rxc8 {[%emt 0:13:10]} 21. e5 $1 {[%emt 0:00:07][%mdl 64] Discovered Attack} Nxe5 {[%emt 0:01:06][%cal Bd7e5,Be5c4,Bc4e3][%mdl 32]} 22. Bxa8 {[%emt 0:00:05] This bishop pair is nice.} Nxc4 {[%emt 0:05:44]} 23. Bxf6 {[%emt 0:00:05]} Qxa8 {[%emt 0:04:04]} 24. Bxh4 {[%emt 0:05:34]} ({Not} 24. Bxg7 Ne3 25. Rd8+ Rxd8 26. fxe3 Kxg7 $11) 24... Ne3 {[%emt 0:02:55][%csl Ge3][%cal Ra8g2] [#]} (24... Ne5 $2 25. Qxc8+ $3 {[%mdl 512]} Qxc8 26. Rd8+ Qxd8 27. Bxd8) 25. Qxc8+ $3 {[%emt 0:00:57][%mdl 512]} Qxc8 {[%emt 0:00:01] [#]} 26. Rd8+ {[%emt 0:09:53]} ({Inferior is} 26. fxe3 Qe6 27. Rd3 f6 $11) 26... Qxd8 {[%emt 0:00:02]} 27. Bxd8 {[%emt 0:00:01][%cal Bh4d8,Bd8a5,Ba5c3,Bc3d4,Bd4e5][%mdl 32]} Nxf1 {[%emt 0:00:09]} 28. Kxf1 $18 {[%emt 0:00:02][%mdl 4096] Endgame KB-KB} Kf8 {[%emt 0:00:58]} 29. Ke2 {[%emt 0:01:37]} Ke8 {[%emt 0:00:02]} 30. Ba5 {[%emt 0:00:31]} Kd7 {[%emt 0:00:59]} 31. Kd3 {[%emt 0:00:28]} Kc6 {[%emt 0:00:48]} (31... Be5 {keeps fighting.} 32. Kc4 Kc6) 32. Bc3 {[%emt 0:00:10]} Bf8 {[%emt 0:00:21]} 33. g4 {[%emt 0:01:58][%cal Bg3g4,Bg4f5][%mdl 32]} Be7 {[%emt 0:01:15]} 34. Ke4 {[%emt 0:00:42]} a6 {[%emt 0:00:57]} 35. Bd4 {[%emt 0:00:01]} Kd6 {[%emt 0:00:20]} 36. f4 {[%emt 0:00:44]} Ke6 {[%emt 0:00:37]} 37. f5+ {[%emt 0:00:09]} gxf5+ $2 {[%emt 0:00:19]} (37... Kd6 $18 38. fxg6 fxg6) 38. gxf5+ {[%emt 0:00:01]} Kd6 {[%emt 0:00:31]} 39. Be5+ {[%emt 0:00:52]} Kd7 {[%emt 0:00:46]} 40. Kd5 {[%emt 0:00:41]} Bg5 {[%emt 0:00:32]} 41. Bd6 {[%emt 0:31:10]} Bh4 {[%emt 0:01:29]} 42. a4 {[%emt 0:00:00] Bg3 would kill now.} Bg5 {[%emt 0:00:17]} 43. Bg3 {[%emt 0:00:00] White mates.} Ke7 {[%emt 0:01:15]} 44. h4 {[%emt 0:00:00]} Bh6 {[%emt 0:11:13]} 45. Be5 {[%emt 0:00:00]} Bd2 {[%emt 0:02:48]} 46. Kc6 {[%emt 0:00:00]} Be1 {[%emt 0:09:01]} 47. h5 {[%emt 0:00:00]} Bd2 {[%emt 0:00:04]} 48. Kb6 {[%emt 0:00:00]} a5 {[%emt 0:00:16]} 49. Kb5 {[%emt 0:00:00]} Kf8 {[%emt 0:02:43]} 50. Bc7 {[%emt 0:00:00]} Kg7 {[%emt 0:00:04]} 51. Bxa5 {[%emt 0:00:00]} Be3 {[%emt 0:00:06]} 52. Bb6 {[%emt 0:00:00]} Bd2 {[%emt 0:00:02]} 53. Bd4+ {[%emt 0:00:00]} Kh6 {[%emt 0:00:37]} 54. a5 {[%emt 0:00:00]} Bxa5 {[%emt 0:00:34]} 55. Kxa5 {[%emt 0:00:00]} Kxh5 {[%emt 0:00:07] [#]} 56. f6 $1 {[%emt 0:00:00] Weighted Error Value: White=0.14 (very precise) /Black=0.68} 1-0

[Event "55th Biel Festival MTO 2022"]
[Site "Biel"]
[Date "2022.07.19"]
[Round "6.21"]
[White "Karthik Rajaa"]
[Black "Gurel Ediz"]
[Result "1/2-1/2"]
[ECO "B46"]
[WhiteElo "2331"]
[BlackElo "2435"]
[Annotator "TA"]
[PlyCount "41"]
[EventDate "2022.07.13"]
[EventType "swiss"]
[EventCountry "SUI"]
[SourceTitle "playchess.com"]
[Source "ChessBase"]
[SourceQuality "1"]
[TimeControl "40/5400+30:1800+30"]

{[%evp 17,41,10,18,32,50,25,37,38,36,35,39,0,0,-17,32,0,34,27,50,57,41,42,205,118,112,112]} 1. e4 {[%emt 0:00:45]} c5 {[%emt 0:00:22]} 2. Nf3 {[%emt 0:00:06]} e6 {[%emt 0:00:06]} 3. d4 {[%emt 0:00:04]} cxd4 {[%emt 0:00:04]} 4. Nxd4 {[%emt 0:00:03]} a6 {[%emt 0:00:53]} 5. Bd3 {[%emt 0:08:07]} Qc7 {[%emt 0:01:49]} 6. O-O {[%emt 0:05:18]} Nc6 {[%emt 0:12:03]} 7. Nxc6 {[%emt 0:26:04]} bxc6 {[%emt 0:40:17]} 8. Qe2 {[%emt 0:00:30]} d5 {[%emt 0:00:30]} 9. Nc3 {[%emt 0:00:30]} Nf6 {[%emt 0:00:30]} 10. Bg5 {[%emt 0:00:30][%cal Bc1g5,Bg5h4,Bh4g3][%mdl 32] Strongly threatening Bxf6. B46: Sicilian: Taimanov: 5 Nc3 a6.} Bb7 {[%emt 0:00:30]} 11. Rfe1 {[%emt 0:00:30]} h6 {[%emt 0:00:30]} 12. Bh4 {[%emt 0:01:42] White is slightly better.} Be7 {[%emt 0:03:14]} 13. Bg3 {[%emt 0:24:26] [#]} Qd8 $146 {[%emt 0:05:15]} ({Predecessor:} 13... Qb6 14. e5 Nd7 15. Qg4 g6 16. Bxg6 Rg8 17. Bxf7+ Kxf7 18. Qh5+ Rg6 19. Ne2 Rag8 {0-1 (32) Schneider,H (2229)-Farago,I (2500) Deizisau 2002}) 14. Rab1 {[%emt 0:07:32]} O-O {[%emt 0:02:51]} 15. b4 {[%emt 0:01:14]} Nd7 {[%emt 0:09:33]} (15... a5 $11 {is superior.}) 16. Na4 {[%emt 0:05:22]} a5 {[%emt 0:07:55]} (16... c5 $5 {[%cal Rc5c4]} 17. exd5 Bxd5 $11) 17. b5 {[%emt 0:00:43]} cxb5 {[%emt 0:00:52]} 18. exd5 $1 {[%emt 0:00:18]} Bxd5 {[%emt 0:00:33]} 19. Bxb5 {[%emt 0:00:22] Black must now prevent c4.} Rc8 {[%emt 0:03:49] [#]} (19... Qc8 $1 $14) 20. c4 {[%emt 0:00:40]} (20. Red1 $1 $18) 20... Bc6 $16 {[%emt 0:00:09][%cal Oe6e5] [#]} 21. Red1 $1 {[%emt 0:03:54] Weighted Error Value: White=0.15 (very precise) /Black=0.26 (precise)} 1/2-1/2

[Event "55th Biel Festival MTO 2022"]
[Site "Biel"]
[Date "2022.07.19"]
[Round "6.22"]
[White "Sahithi Varshini M"]
[Black "Krishna C R G"]
[Result "0-1"]
[ECO "C07"]
[WhiteElo "2312"]
[BlackElo "2430"]
[Annotator "TA"]
[PlyCount "64"]
[EventDate "2022.07.13"]
[EventType "swiss"]
[EventCountry "SUI"]
[SourceTitle "playchess.com"]
[Source "ChessBase"]
[SourceQuality "1"]
[TimeControl "40/5400+30:1800+30"]

{[%evp 11,64,3,10,-15,9,0,0,0,0,0,14,-16,-22,-21,-26,-22,-24,-20,-16,-23,0,-6,0,0,0,-20,0,-10,-9,0,-16,-13,-25,-28,-38,-38,-38,-38,-36,-108,-102,-258,-255,-261,-268,-306,-285,-652,-644,-1843,-1789,-29983,-29984,-29989,-29990]} 1. e4 {[%emt 0:00:17]} e6 {[%emt 0:00:11]} 2. d4 {[%emt 0:00:06]} d5 {[%emt 0:00:06]} 3. Nd2 {[%emt 0:00:12]} c5 {[%emt 0:00:08]} 4. Ngf3 {[%emt 0:01:23]} cxd4 {[%emt 0:00:10]} 5. Nxd4 {[%emt 0:01:37]} Nf6 {[%emt 0:00:32]} 6. exd5 {[%emt 0:06:54]} Qxd5 {[%emt 0:02:28]} 7. N4f3 {[%emt 0:00:30] C07: French Tarrasch: 3...c5, 4 Ngf3 and 4 exd5 Qxd5.} Nbd7 {[%emt 0:05:13]} 8. Bc4 {[%emt 0:00:39]} Qc5 {[%emt 0:01:48]} 9. O-O {[%emt 0:04:06] [#] The position is equal.} Bd6 $146 {[%emt 0:00:09]} ({Predecessor:} 9... Be7 10. a3 O-O 11. Bd3 b6 12. b4 Qh5 13. c4 a5 14. Rb1 axb4 15. axb4 Bb7 16. Re1 Rfd8 {1-0 (37) Kuba,G (2338)-Genser,H (2303) Austria 2017}) 10. Bd3 {[%emt 0:01:36]} O-O {[%emt 0:01:33]} 11. a3 {[%emt 0:12:39]} b6 {[%emt 0:11:24]} 12. b4 {[%emt 0:19:13]} Qc7 {[%emt 0:02:14]} 13. Nc4 {[%emt 0:05:48]} Be7 {[%emt 0:01:25]} 14. Bb2 {[%emt 0:01:34]} Bb7 {[%emt 0:00:23]} 15. Nfe5 {[%emt 0:06:28] Inhibits Ng4.} Rad8 {[%emt 0:15:26]} 16. Qe2 {[%emt 0:01:43]} Nxe5 {[%emt 0:15:10]} 17. Bxe5 {[%emt 0:03:15]} Qc6 {[%emt 0:03:06][%csl Gb7][%cal Rc6g2] [#]} 18. f3 {[%emt 0:02:02]} Rc8 {[%emt 0:02:41]} 19. Rfe1 {[%emt 0:08:03]} Rfd8 {[%emt 0:15:59]} 20. Ne3 {[%emt 0:02:22] Bb5 is the strong threat.} Bd6 {[%emt 0:02:13]} 21. Bxd6 {[%emt 0:04:34]} Qxd6 {[%emt 0:01:54]} 22. Ba6 {[%emt 0:01:46]} Bxa6 {[%emt 0:02:46]} 23. Qxa6 {[%emt 0:00:06]} Qc7 {[%emt 0:03:14]} 24. c4 {[%emt 0:00:51] Inhibits Nd5.} Nd7 {[%emt 0:00:58][%cal Bf6d7,Bd7e5,Be5d3,Bd3f4][%mdl 32]} 25. a4 {[%emt 0:04:44]} (25. Rad1 $15) 25... Ne5 $17 {[%emt 0:01:01] And now ...Nd3 would win.} 26. Ra3 {[%emt 0:02:38] This move loses the game for White.} (26. Red1 $17 {might work better.}) 26... Qd6 $19 {[%emt 0:05:35]} ({Don't take} 26... Nxc4 27. Rc3 $18) 27. Rb3 {[%emt 0:02:30] [#]} Qd2 {[%emt 0:02:18]} 28. Rf1 {[%emt 0:00:49]} Nd3 {[%emt 0:01:04]} 29. Ng4 {[%emt 0:00:51]} (29. Nd1) 29... h5 {[%emt 0:00:50]} 30. Qxa7 {[%emt 0:01:29]} hxg4 {[%emt 0:00:10]} 31. Qxb6 {[%emt 0:00:04]} gxf3 {[%emt 0:02:22]} 32. gxf3 {[%emt 0:00:05]} Nf4 {[%emt 0:00:16] Weighted Error Value: White=0.71/Black=0.03 (flawless)} 0-1

[Event "55th Biel Festival MTO 2022"]
[Site "Biel"]
[Date "2022.07.19"]
[Round "6.23"]
[White "Popiol Michal"]
[Black "Peyrer, Konstantin"]
[Result "1-0"]
[ECO "A29"]
[WhiteElo "2118"]
[BlackElo "2406"]
[Annotator "TA"]
[PlyCount "111"]
[EventDate "2022.07.13"]
[EventType "swiss"]
[EventCountry "SUI"]
[SourceTitle "playchess.com"]
[Source "ChessBase"]
[SourceQuality "1"]
[TimeControl "40/5400+30:1800+30"]

{[%evp 21,111,0,28,-7,0,11,16,0,36,36,35,11,47,0,0,-14,-3,-14,-10,-7,-12,-6,-21,-17,-8,-8,0,-46,130,125,118,98,227,220,204,231,445,443,410,427,426,417,372,368,368,372,499,500,539,534,539,450,665,665,653,648,685,678,637,578,1020,966,1033,1031,941,752,999,934,1016,1004,995,968,941,845,909,641,639,623,831,625,1281,1272,1265,1136,1049,893,1184,1101,1101,758,1081,1067]} 1. c4 {[%emt 0:00:42]} Nf6 {[%emt 0:00:34]} 2. Nc3 {[%emt 0:00:18]} e5 {[%emt 0:00:08]} 3. g3 {[%emt 0:00:48]} d5 {[%emt 0:00:06]} 4. cxd5 {[%emt 0:00:13]} Nxd5 {[%emt 0:00:08]} 5. Bg2 {[%emt 0:00:05]} Nb6 {[%emt 0:00:04]} 6. Nf3 {[%emt 0:02:49]} Nc6 {[%emt 0:00:16]} 7. O-O {[%emt 0:00:30]} Be7 {[%emt 0:00:08]} 8. d3 {[%emt 0:04:38]} O-O {[%emt 0:00:42]} 9. a3 {[%emt 0:01:46]} Be6 {[%emt 0:00:06]} 10. b4 {[%emt 0:02:32]} f6 {[%emt 0:00:07]} 11. Bb2 {[%emt 0:01:25]} Qd7 {[%emt 0:11:33]} 12. Rc1 {[%emt 0:02:26] A29: English Opening: Four Knights Variation with 4 g3.} Rad8 {[%emt 0:11:05]} (12... a5 $5 {[%cal Ra5b4]}) 13. Ne4 {[%emt 0:02:16]} Bd5 {[%emt 0:03:35]} 14. Nc5 {[%emt 0:01:29] The position is equal.} Qc8 {[%emt 0:00:06][%cal Ob6c4]} (14... Bxc5 $5 15. Rxc5 (15. bxc5 Nc8 $11) 15... a6 $11) 15. Qc2 {[%emt 0:06:13]} Bxc5 {[%emt 0:08:25]} 16. Qxc5 {[%emt 0:00:07] [#]} Qe6 $146 {[%emt 0:02:06]} ({Predecessor:} 16... Na4 17. Qc2 Nxb2 18. Qxb2 Nd4 19. Nxd4 Bxg2 20. Kxg2 exd4 21. Qb3+ Kh8 22. Rc2 Rd7 {½-½ (68) Titz,H (2191)-Zsifkovits,R (2152) Zwettl 2012}) 17. Ba1 {[%emt 0:12:32]} (17. b5 $1 $14 Ne7 18. Ba1 (18. Qxc7 Rc8 $11)) 17... a6 $11 {[%emt 0:02:57]} 18. Nd2 {[%emt 0:19:00]} Bxg2 {[%emt 0:06:39]} 19. Kxg2 {[%emt 0:00:05]} Qa2 {[%emt 0:06:44][%csl LRa3,LRd2]} 20. Qc3 {[%emt 0:14:28]} Nd4 {[%emt 0:03:33] Prevents Qb3+.} 21. Rfe1 {[%emt 0:00:55]} Rf7 {[%emt 0:01:13] Threatens to win with ...Na4.} 22. Qb2 $1 {[%emt 0:02:31]} Qd5+ {[%emt 0:00:21]} 23. Kg1 {[%emt 0:00:27]} h5 {[%emt 0:04:55]} 24. Rc5 {[%emt 0:05:16]} (24. h4 $11) 24... Nxe2+ $2 {[%emt 0:05:36]} 25. Rxe2 $16 {[%emt 0:00:51]} Qxd3 {[%emt 0:00:10] [#]} 26. Nf1 $1 {[%emt 0:01:15] Strongly threatening Rd2.} Na4 {[%emt 0:00:09] [#] This move loses the game for Black.} (26... Nc4 $16 27. Qa2 b5) 27. Qa2 $1 $18 {[%emt 0:00:17] Hoping for Rd2.} Nxc5 {[%emt 0:00:15]} 28. Rd2 {[%emt 0:00:17][%mdl 64] Skewer} Nb3 {[%emt 0:00:57]} (28... Na4 29. Rxd3 Rxd3) 29. Rxd3 {[%emt 0:01:04]} Rxd3 {[%emt 0:00:10]} 30. Qc2 {[%emt 0:05:30]} e4 {[%emt 0:00:07]} 31. Bc3 {[%emt 0:00:54]} Nd4 {[%emt 0:00:07]} 32. Bxd4 {[%emt 0:00:03]} Rxd4 {[%emt 0:00:09]} 33. Qc5 {[%emt 0:00:39][%csl LRd4,LRh5]} Rd3 {[%emt 0:00:31]} 34. Qxh5 {[%emt 0:03:35] White is clearly winning.} Rxa3 {[%emt 0:00:52]} 35. Qd5 {[%emt 0:00:08] Inhibits a5.} c6 {[%emt 0:01:08]} 36. Qxe4 {[%emt 0:00:06]} a5 {[%emt 0:00:07]} (36... Kf8 $142 37. Ne3 Re7) 37. Qe8+ {[%emt 0:00:24]} Rf8 {[%emt 0:00:18]} 38. Qe6+ {[%emt 0:00:04]} Kh8 {[%emt 0:00:14]} 39. Qe7 {[%emt 0:01:22]} Kg8 {[%emt 0:01:21]} 40. Qxb7 {[%emt 0:00:53]} a4 {[%emt 0:01:03]} 41. Qxc6 {[%emt 0:30:11]} Ra1 {[%emt 0:30:08]} 42. Qc4+ {[%emt 0:01:50]} Kh8 {[%emt 0:00:10]} 43. Qc3 {[%emt 0:02:24]} Rb1 {[%emt 0:00:19]} 44. Kg2 {[%emt 0:00:53]} Rb8 {[%emt 0:04:19]} 45. Ne3 {[%emt 0:02:05]} R1xb4 {[%emt 0:00:59]} 46. Nd5 {[%emt 0:01:26]} R4b7 {[%emt 0:01:34]} 47. Qf3 {[%emt 0:00:00]} Ra7 {[%emt 0:00:00]} 48. Qe3 {[%emt 0:00:00]} Rbb7 {[%emt 0:00:00]} 49. Qa3 {[%emt 0:00:00]} Ra8 {[%emt 0:00:00]} 50. Nb4 {[%emt 0:00:00]} Rb6 {[%emt 0:00:00]} 51. Qf3 {[%emt 0:00:00]} Ra7 {[%emt 0:00:00]} 52. Nc6 {[%emt 0:00:00]} Rf7 {[%emt 0:00:00]} 53. Qd5 {[%emt 0:00:00]} Rfb7 {[%emt 0:00:00]} 54. Qh5+ {[%emt 0:00:00]} Kg8 {[%emt 0:00:00]} 55. Qe8+ {[%emt 0:00:00]} Kh7 {[%emt 0:00:00]} 56. Ne7 {[%emt 0:00:00] Weighted Error Value: White=0.09 (flawless) /Black=0.48} 1-0

[Event "55th Biel Festival MTO 2022"]
[Site "Biel"]
[Date "2022.07.19"]
[Round "6.24"]
[White "Dishman Stephen"]
[Black "Hilby Craig"]
[Result "1/2-1/2"]
[ECO "B27"]
[WhiteElo "2252"]
[BlackElo "2422"]
[Annotator "TA"]
[PlyCount "69"]
[EventDate "2022.07.13"]
[EventType "swiss"]
[EventCountry "SUI"]
[SourceTitle "playchess.com"]
[Source "ChessBase"]
[SourceQuality "1"]
[TimeControl "40/5400+30:1800+30"]

{[%evp 11,69,31,37,35,61,22,26,18,23,22,23,11,45,11,19,10,25,10,15,18,25,21,22,8,21,0,95,85,102,89,85,78,93,101,140,131,207,102,133,0,0,0,0,0,0,0,0,0,0,0,0,0,0,0,0,0,0,0,0,0]} 1. Nf3 {[%emt 0:00:04]} g6 {[%emt 0:00:46]} 2. e4 {[%emt 0:00:59]} c5 {[%emt 0:00:23]} 3. c3 {[%emt 0:01:19]} Bg7 {[%emt 0:01:12]} 4. d4 {[%emt 0:00:18]} cxd4 {[%emt 0:02:13]} 5. cxd4 {[%emt 0:00:07]} d5 {[%emt 0:00:08]} 6. e5 {[%emt 0:00:21]} Nc6 {[%emt 0:00:35]} 7. Bb5 $1 {[%emt 0:01:05][%mdl 4] now scores much better than the old 7.Nc3. B27: Sicilian: 2 Nf3, unusual Black 2nd moves.} Bg4 {[%emt 0:03:09]} 8. Nbd2 {[%emt 0:01:04]} (8. Bxc6+ $5 bxc6 9. Nbd2 $14) 8... Qb6 {[%emt 0:02:04]} 9. Bxc6+ {[%emt 0:04:19] White has an edge.} Qxc6 {[%emt 0:00:28]} 10. h3 {[%emt 0:01:11]} Bd7 {[%emt 0:02:45]} 11. O-O {[%emt 0:01:04]} Rc8 {[%emt 0:00:48]} 12. Nb1 {[%emt 0:03:04] [#]} e6 $146 {[%emt 0:02:25]} ({Predecessor:} 12... Nh6 13. Nc3 O-O 14. Qb3 Be6 15. Bf4 f6 16. exf6 exf6 17. Nb5 Qb6 18. Nd6 Rc6 19. Nxb7 {1-0 (42) Gagare,S (2476)-Nguyen,P (2420) Pardubice 2019}) 13. Nc3 {[%emt 0:00:41]} h6 {[%emt 0:00:41]} 14. Bf4 {[%emt 0:12:59]} Ne7 {[%emt 0:02:20]} 15. Qd2 {[%emt 0:03:19]} g5 {[%emt 0:00:49]} 16. Be3 {[%emt 0:04:24]} Nf5 {[%emt 0:04:29]} 17. Nh2 {[%emt 0:09:27]} Qb6 {[%emt 0:02:49]} 18. Rad1 {[%emt 0:07:11]} Rg8 {[%emt 0:06:43]} (18... Bf8 $11) 19. g4 $16 {[%emt 0:05:00]} Nxe3 {[%emt 0:01:03]} 20. fxe3 {[%emt 0:00:14]} Bc6 {[%emt 0:01:28]} 21. Rf2 {[%emt 0:02:08]} ({Don't play} 21. Qf2 Rc7 $11) 21... Rc7 {[%emt 0:01:50]} 22. Nf1 {[%emt 0:00:45] White is more active.} Rf8 {[%emt 0:06:03]} 23. Ng3 {[%emt 0:00:33]} f6 {[%emt 0:00:19] [#]} (23... Kd8 $16 24. Nh5 Bh8) 24. exf6 {[%emt 0:02:37]} (24. Qd3 $1 $18 {and White stays clearly on top.}) 24... Bxf6 {[%emt 0:01:25]} 25. Nh5 {[%emt 0:01:45]} ({White should play} 25. Rdf1 $16 Rcf7 26. Qd3) 25... Rcf7 $11 {[%emt 0:00:47][%cal Of6d4] aiming for ...Bxd4! The position is equal.} 26. Rdf1 {[%emt 0:08:56]} Be7 {[%emt 0:05:17]} 27. Rxf7 {[%emt 0:01:14]} Rxf7 {[%emt 0:00:05]} 28. Rxf7 {[%emt 0:01:09]} Kxf7 {[%emt 0:00:03]} 29. Qc2 {[%emt 0:03:30]} Ke8 {[%emt 0:00:35]} 30. Ng7+ {[%emt 0:04:03] Pair of Knights!} Kd7 $1 {[%emt 0:00:09]} 31. Qg6 {[%emt 0:03:33]} Qxb2 {[%emt 0:00:21]} 32. Qe8+ {[%emt 0:12:46]} Kd6 {[%emt 0:00:07]} 33. Qb8+ {[%emt 0:00:10]} Kd7 {[%emt 0:00:04] [#] ...Bd8 is the strong threat.} 34. Qe8+ {[%emt 0:00:24]} Kd6 {[%emt 0:00:03]} 35. Qb8+ {[%emt 0:01:47] Weighted Error Value: White=0.13 (very precise) /Black=0.18 (very precise)} 1/2-1/2